{"text_format":"1","workbook":"xlsx","n_sheets":13,"sheets":["January 2023","February 2023","March 2023","April 2023","May 2023","June 2023","July 2023","August 2023","September 2023","October 2023","November 2023","December 2023","Source Files"],"not_rendered":{"charts":0,"images":1,"macros":1,"external_links":0,"defined_names":0,"comments":0,"pivot_tables":0},"unopened":[],"bounds":{"document_bytes":16777216,"sheet_cells":100000,"rows_first":2000,"rows_last":500,"rows_between":2000,"halvings":0,"cell_chars":16384,"cell_head_chars":4096},"cells_cut":0,"cells_raw":0,"read":"whole","date_system":"1900"}

{"sheet":"January 2023","index":0,"n_rows":79,"n_cols":8,"rows_kept":79,"cut":false,"hidden":false,"merged":[[74,4,74,5],[75,4,75,5],[76,4,76,5],[77,4,77,5],[78,4,78,5],[62,1,62,5],[63,4,63,5],[71,4,71,5],[72,4,72,5],[73,4,73,5],[64,4,64,5],[65,4,65,5],[66,4,66,5],[67,4,67,5],[68,4,68,5],[69,1,69,5],[70,1,70,5],[0,0,3,7],[56,0,56,7],[57,0,57,7],[60,4,60,5],[61,4,61,5]]}
[]
[]
[]
[]
["RUN #","TYPE","LOCATION","MUNICIPALITY","DATE","BOX","RESPONSE","INC. #"]
[1,"Medical Local","Logan Rd","Carroll Twp","2023-01-02","15-01","Responed",1]
[2,"MVA","Spring Lane Rd @ Ore Bank Rd","Carroll Twp","2023-01-02","15-115","Responed",2]
[3,"MVA","Harrisburg Pike @ Rose Aly","Dillsburg Boro","2023-01-02","15-02","Responed",3]
[4,"MVA","Stoney Run Rd","Carroll Twp","2023-01-03","15-01","Responed",4]
[5,"MVA","Camp Ground & York Rd","Carroll Twp","2023-01-05","15-04","Responed",5]
[6,"Medical Local","Baltimore Rd","Franklin Twp","2023-01-07","15-08","Responed",6]
[7,"Force Entry","S Mountain Rd @ Highland Park Apts","Franklin Twp","2023-01-07","15-06","Responed",7]
[8,"AFA","S Baltimore St @ NHS Admin BLDG","Carroll Twp","2023-01-08","15-01","Responed",8]
[9,"Medical Local","N Baltimore St","Franklintown Boro","2023-01-09","MAYC 66-40","Responed",9]
[10,"Vehicle Fire","RTE 15N @ Dillsburg Tobacco Outlet","Carroll Twp","2023-01-09","15-215","Responed",10]
[11,"Residential Structure Fire","Cabin Hollow Rd","Warrington Twp","2023-01-09","MAYC 66-04","Responed",11]
[12,"MVA","S Mountain Rd ","Franklin Twp","2023-01-10","15-07","Responed",12]
[13,"MVA","Old York Rd @ Nursery Rd","Carroll Twp","2023-01-12","15-01","Responed",13]
[14,"AFA","S Baltimore St @ Citizens Bank","Dillsburg Boro","2023-01-13","15-02","Responed",14]
[15,"Residential Structure Fire","Rupp Rd","Tyrone Twp","2023-01-13","MAAC 25-1","Responed",15]
[16,"MVA","RTE 15 S @Old Route 15","Latimore Twp","2023-01-13","MAAC 9-3","Responed",16]
[17,"Fire Police","RTE 15 S @ Baltimore St","Carroll Twp","2023-01-13","15-215","Responed",17]
[18,"AFA","S Baltimore St @ Citizens Bank","Dillsburg Boro","2023-01-13","15-02","Responed",18]
[19,"AFA","S Baltimore St @ Citizens Bank","Dillsburg Boro","2023-01-14","15-02","Responed",19]
[20,"Medical Local","N Baltimore St","Dillsburg Boro","2023-01-16","15-02","Responed",20]
[21,"Residential Structure Fire","Roundtop Rd","Warrington Twp","2023-01-16","MAYC 66-11","Responed",21]
[22,"Fire Police","Baltimore Pike @ Hoffman Rd","Washington Twp","2023-01-16","MAYC 32-41","Responed",22]
[23,"MVA","RTE 15 S @ Team One Auto","Carroll Twp","2023-01-18","15-215","Responed",23]
[24,"Assist PD","Carlisle Rd","Carroll Twp","2023-01-18","15-01","Responed",24]
[25,"Medical Local","W Harrisburg St","Dillsburg Boro","2023-01-18","15-02","Responed",25]
[26,"Outside Investigation","Pondtown Rd @ Ridge Rd","Washington Twp","2023-01-19","15-10","Responed",26]
[27,"Medical Local","S Mountain Rd","Franklin Twp","2023-01-20","15-07","Responed",27]
[28,"Medical Local","Impala Dr","Dillsburg Boro","2023-01-21","15-02","Responed",28]
[29,"Vehicle Fire","RTE 15 S @ MM27.9","Franklin Twp","3023-01-21","15-315","Responed",29]
[30,"Force Entry","Beaver St","Dillsburg Boro","2023-01-21","15-02","Responed",30]
[31,"Hazardous Material","S Fileys Rd","Monaghan Twp","2023-01-23","MAYC 67-04","Responed",31]
[32,"Vehicle Fire","RTE 15 N @ MM 32.8","Carroll Twp","2023-01-23","15-115","Responed",32]
[33,"MVA","RTE 15 S @ MM 26.6","Franklin Twp","2023-01-25","15-315","Responed",33]
[34,"MVA","Glenview Dr @ Baltimore Rd","Franklin Twp","2023-01-25","15-08","Responed",34]
[35,"Medical Local","Glenview Cir","Franklintown Boro","2023-01-25","MAYC 66-40","Responed",35]
[36,"Duty Officer","Twin Hills Rd","Franklin Twp","2023-01-25","15-06","Responed",36]
[37,"Assist PD","Twin Hills Rd","Franklin Twp","2023-01-25","15-06","Responed",37]
[38,"Residential Structure Fire","W Greenhouse Rd","Franklin Twp","2023-01-26","15-06","Responed",38]
[39,"AFA","Stone Head Rd","Franklin Twp","2023-01-27","15-04","Responed",39]
[40,"Medical Local","Glenwood Rd","Franklin Twp","2023-01-28","15-08","Responed",40]
[41,"AFA","Gettysburg Pike","Carroll Twp","2023-01-28","15-03","Responed",41]
[42,"Medical Local","Sheffield Dr","Carroll Twp","2023-01-28","15-03","Responed",42]
[43,"Medical Local","Gettysburg Pike","Carroll Twp","2023-01-29","15-03","Responed",43]
[44,"Residential Structure Fire","York Rd","Monroe Twp","2023-01-30","MACC 25-09","Responed",44]
[45]
[46]
[47]
[48]
[49]
[50]
[]
["MA--Mutual Aid     YC--York County, AC--Adams County, CC--Cumberland County, DC--Dauphin County"]
["15--NYCFR Box,  YC66--Wellsville,  YC67--Monaghan,  AC32--Northeast Fire (East Berlin/Lake Meade),  AC10--Hampton,  YC9--Dover Township, CC23 (Upper Allen Township) CC25 (Monroe Township), AC9 (York Springs), CC27 (Mechaincisburg) AC33 (United Hook & Ladder)"]
[]
[null,null,"Total Calls For Month",{"$f":"COUNTA(C6:C55)","v":44}]
[null,null,"Total Calls For The Year",{"$f":"COUNTA(C6:C55)","v":44}]
[]
[null,"RUN BREAKDOWNS BY MUNICIPALITY"]
[null,"Dillsburg Boro --8/8","Franklin Township --12/12","Carroll Township --14/14","Franklintown Boro --2/2"]
[null,"Washington Township --2/2","Warrington Township --2/2","Monroe Township --1/1","Monaghan Township --1/1"]
[null,"Upper Allen Township --/--","Reading Township --/--","Huntington Township --/--","Latimore Township --1/1"]
[null,"Dover Boro --/--","Gettysburg Boro --/--","Paxtang Boro --/--","Tyrone --1/1"]
[null,"Jackson Twp --/--","Bendersville --/--","Dover Twp --/--"]
[]
[]
[null,"TYPE PER MONTH / YEARLY TOTAL "]
[null,"Medical Local --11/11","Fuel Spill --/--","Commercial Appliance Fire --/--","Barn Fire --/--"]
[null,"Residential Structure Fire --5/5","MVA --10/10","Duty Officer --1/1","Public Service --/--"]
[null,"Commercial Structure Fire --/--","Trees/Wires/Poles --/--","Outside Investigation --1/1","Gas Leak Inside --/--"]
[null,"Carbon Monoxide --/--","Fire Police --2/2","Investigation Inside --/--","Brush Fire --/--"]
[null,"Vehicle Fire --3/3","Transfer --/--","AFA -6/6","Landing Zone --/--"]
[null,"Hazardous Material --1/1","Assist PD --2/2","Special Rescue --/--","Controlled Burn Extinguish --/--"]
[null,"Trash Fire --/--","Animal Rescue --/--","Pedestrian Struck --/--","Water Rescue --/--"]
[null,"Land Rescue --/--","Appliance Fire --/--","Force Entry --2/2"]

{"sheet":"February 2023","index":1,"n_rows":80,"n_cols":8,"rows_kept":80,"cut":false,"hidden":false,"merged":[[75,4,75,5],[76,4,76,5],[77,4,77,5],[78,4,78,5],[79,4,79,5],[63,1,63,5],[64,4,64,5],[72,4,72,5],[73,4,73,5],[74,4,74,5],[65,4,65,5],[66,4,66,5],[67,4,67,5],[68,4,68,5],[69,4,69,5],[70,1,70,5],[71,1,71,5],[0,0,3,7],[57,0,57,7],[58,0,58,7],[61,4,61,5],[62,4,62,5]]}
[]
[]
[]
[]
["RUN #","TYPE","LOCATION","MUNICIPALITY","DATE","BOX","RESPONSE","INC. #"]
[1,"MVA","RTE 15 N @ McDonalds","Carroll Twp","2023-02-01","15-115","Responed",45]
[2,"MVA","S Baltimore St @ West York St","Dillsburg Boro","2023-02-02","15-02","Responed",46]
[3,"MVA","Baltimore Pike","Washington Twp","2023-02-02","15-10","Responed",47]
[4,"AFA","Carlisle Rd","Carroll Twp","2023-02-03","15-01","Responed",48]
[5,"Residential Structure Fire","Cumberland Parkway","Upper Allen Twp","2023-02-03","MACC 23-02","Responed",49]
[6,"AFA","W Hanover St","Dillsburg Boro","2023-02-03","15-02","Responed",50]
[7,"Residential Structure Fire","Putters Cir","Carroll Twp","2023-02-03","15-04","Responed",51]
[8,"AFA","Autumn Wood CT","Dillsburg Boro","2023-02-04","15-02","Responed",52]
[9,"Residential Structure Fire","Ridge Rd","Washington Twp","2023-02-05","MAYC 66-51","Canceled Prior to Response",53]
[10,"Assist PD","Chestnut Grove Rd","Carroll Twp","2023-02-06","15-01","Responed",54]
[11,"MVA","Williams Grove Rd @ York Rd","Carroll Twp","2023-02-10","15-04","Responed",55]
[12,"MVA","RTE 15 N @ Old Mill Rd","Carroll Twp","2023-02-10","15-215","Responed",56]
[13,"MVA W/Entrapment","S Mountain Rd","Franklin Twp","2023-02-10","15-06","Responed",57]
[14,"MVA","RTE 15 N @ Giant Foods","Carroll Twp","2023-02-11","15-115","Responed",58]
[15,"MVA","RTE 15 N @ Sheetz","Dillsburg Boro","2023-02-11","15-02","Responed",59]
[16,"Chimney Fire","Camp Ground Rd","Carroll Twp","2023-02-12","15-04","Responed",60]
[17,"Medical Local(Lift Assist)","S Mountain Rd","Franklin Twp","2023-02-13","15-06","Responed",61]
[18,"AFA","MT. Zion Rd","Warrington Twp","2023-02-14","MAYC 66-03","Responed",62]
[19,"Brush Fire","Bethel Church Rd","Franklin Twp","2023-02-14","15-07","Responed",63]
[20,"Vehicle Fire","RTE 15 N @ MCDonalds","Carroll Twp","2023-02-14","15-115","Responed",64]
[21,"MVA","RTE 15 N @ Sheetz","Dillsburg Boro","2023-02-15","15-02","Responed",65]
[22,"MVA","Stoney Run Rd","Franklin Twp","2023-02-17","15-08","Responed",66]
[23,"Fire Police","Herman Dr & Gettysburg Pike","Upper Allen Twp","2023-02-17","MACC 23-03","Responed",67]
[24,"Transfer Assignment","W Broadway Station 77","Red Lion Boro","2023-02-19","MAYC 77-03","Canceled Prior to Response",68]
[25,"Transfer Assignment","S Main St Station 18","Jacobus Boro","2023-02-19","MAYC 18-01","Responed",69]
[26,"Outside Investigation","Furman Rd","Franklin Twp","2023-02-19","15-06","Responed",70]
[27,"Medical Local(Lift Assist)","Seasons Dr","Monaghan Twp","2023-02-19","MAYC 67-04","Responed",71]
[28,"Medical Local(Lift Assist)","Northern Dancer","Carroll Twp","2023-02-20","15-01","Canceled Prior to Response",72]
[29,"Barn Fire","Franklin Church Rd","Franklin Twp","2023-02-20","15-09","Responed",73]
[30,"Trees / Wires / Pole Fire","Stoney Run Rd","Carroll Twp","2023-02-21","15-01","Responed",74]
[31,"Residential Structure Fire","Fisher Rd","Monroe Twp","2023-02-21","MACC 25-08","Responed",75]
[31,"Medical Local","Locust Grove Rd","Franklin Twp","2023-02-22","15-08","Responed",76]
[33,"Medical Local(Lift Assist)","S Mountain Rd","Franklin Twp","2022-02-23","15-06","Responed",77]
[34,"Basic Rescue","S Mountain Rd","Franklin Twp","2022-02-23","15-06","Responed",78]
[35,"Medical Local","Scotch Pine","Franklin Twp","2023-02-24","15-07","Responed",79]
[36,"Transfer Assignment","Davidsburg Rd","Dover Twp","2023-02-24","MAYC 9-01","Responed",80]
[37,"Residential Structure Fire","Pine Run Rd","Hamilton Twp","2023-02-24","MAAC 33-201","Responed",81]
[38,"MVA","Camp Ground Rd","Carroll Twp","2023-02-25","15-04","Responed",82]
[39,"Medical Local(Lift Assist)","S Mountain Rd","Franklin Twp","2023-02-26","15-06","Responed",83]
[40,"Residential Structure Fire","RTE 15 N","Dillsburg Boro","2023-02-26","15-02","Responed",84]
[41,"Outside Investigation","Pondtown Rd & Ridge Rd","Washington Twp","2023-02-28","15-10","Responed",85]
[42]
[43]
[44]
[45]
[46]
[47]
[48]
[49]
[40]
[51]
[]
["MA--Mutual Aid     YC--York County, AC--Adams County, CC--Cumberland County, DC--Dauphin County"]
["15--NYCFR Box,  YC66--Wellsville,  YC67--Monaghan,  AC32--Northeast Fire (East Berlin/Lake Meade),  AC10--Hampton,  YC9--Dover Township, CC23 (Upper Allen Township) CC25 (Monroe Township), AC9 (York Springs), CC27 (Mechaincisburg) AC33 (United Hook & Ladder)"]
[]
[null,null,"Total Calls For Month",{"$f":"COUNTA(C6:C56)","v":41}]
[null,null,"Total Calls For The Year",{"$f":"SUM(D61+'January 2023'!D60)","v":85}]
[]
[null,"RUN BREAKDOWNS BY MUNICIPALITY"]
[null,"Dillsburg Boro --6/13","Franklin Township --11/23","Carroll Township --12/26","Franklintown Boro --/2"]
[null,"Washington Township --3/5","Warrington Township --1/3","Monroe Township --1/2","Monaghan Township --1/2"]
[null,"Upper Allen Township --2/2","Reading Township --/--","Huntington Township --/--","Latimore Township --/1"]
[null,"Dover Boro --/--","Gettysburg Boro --/--","Paxtang Boro --/--","Tyrone --/1"]
[null,"Jackson Twp --/--","Bendersville --/--","Dover Twp --1/1","Red Lion Boro --1/1"]
[null,"Jacobus Boro --1/1","Hamilton Twp --1/1"]
[]
[null,"TYPE PER MONTH / YEARLY TOTAL "]
[null,"Medical Local --7/18","Fuel Spill --/--","Commercial Appliance Fire --/--","Barn Fire --1/1"]
[null,"Residential Structure Fire --6/11","MVA --11/21","Duty Officer --/1","Public Service --/--"]
[null,"Commercial Structure Fire --/--","Trees/Wires/Poles --1/1","Outside Investigation --2/2","Gas Leak Inside --/--"]
[null,"Carbon Monoxide --/--","Fire Police --1/3","Investigation Inside --/--","Brush Fire --1/1"]
[null,"Vehicle Fire --1/4","Transfer --3/3","AFA --4/10","Landing Zone --/--"]
[null,"Hazardous Material --/1","Assist PD --1/3","Special Rescue --1/1","Controlled Burn Extinguish --/--"]
[null,"Trash Fire --/--","Animal Rescue --/--","Pedestrian Struck --/--","Water Rescue --/--"]
[null,"Land Rescue --/--","Appliance Fire --/--","Force Entry --/2","Chimney Fire —1/1"]

{"sheet":"March 2023","index":2,"n_rows":79,"n_cols":8,"rows_kept":79,"cut":false,"hidden":false,"merged":[[75,4,75,5],[76,4,76,5],[77,4,77,5],[78,4,78,5],[64,4,64,5],[65,4,65,5],[66,4,66,5],[67,4,67,5],[68,4,68,5],[70,1,70,5],[71,4,71,5],[62,1,62,5],[63,4,63,5],[72,4,72,5],[73,4,73,5],[74,4,74,5],[0,0,3,7],[56,0,56,7],[57,0,57,7],[60,4,60,5],[61,4,61,5]]}
[]
[]
[]
[]
["RUN #","TYPE","LOCATION","MUNICIPALITY","DATE","BOX","RESPONSE","INC. #"]
[1]
[2]
[3]
[4]
[5]
[6]
[7]
[8]
[9]
[10]
[11]
[12]
[13]
[14]
[15]
[16]
[17]
[18]
[19]
[20]
[21]
[22]
[23]
[24]
[25]
[26]
[27]
[28]
[29]
[30]
[31]
[32]
[33]
[34]
[35]
[36]
[37]
[38]
[39]
[40]
[41]
[42]
[43]
[44]
[45]
[46]
[47]
[48]
[49]
[50]
[]
["MA--Mutual Aid     YC--York County, AC--Adams County, CC--Cumberland County, DC--Dauphin County"]
["15--NYCFR Box,  YC66--Wellsville,  YC67--Monaghan,  AC32--Northeast Fire (East Berlin/Lake Meade),  AC10--Hampton,  YC9--Dover Township, CC23 (Upper Allen Township) CC25 (Monroe Township), AC9 (York Springs), CC27 (Mechaincisburg) AC33 (United Hook & Ladder)"]
[]
[null,null,"Total Calls For Month",{"$f":"COUNTA(C6:C55)","v":0}]
[null,null,"Total Calls For The Year",{"$f":"SUM('January 2023'!D60,'February 2023'!D61,'March 2023'!D60,'April 2023'!D60,'May 2023'!D60,'June 2023'!D60,'July 2023'!D60,'August 2023'!D60,'September 2023'!D60,'October 2023'!D60,'November 2023'!D60,'December 2023'!D60)","v":85}]
[]
[null,"RUN BREAKDOWNS BY MUNICIPALITY"]
[null,"Dillsburg Boro --/13","Franklin Township --/23","Carroll Township --/26","Franklintown Boro --/2"]
[null,"Washington Township --/5","Warrington Township --/3","Monroe Township --/2","Monaghan Township --/2"]
[null,"Upper Allen Township --/2","Reading Township --/--","Huntington Township --/--","Latimore Township --/1"]
[null,"Dover Boro --/--","Gettysburg Boro --/--","Paxtang Boro --/--","Tyrone --/1"]
[null,"Jackson Twp --/--","Bendersville --/--","Dover Twp --/1","Red Lion Boro --/1"]
[null,"Jacobus Boro --/1","Hamilton Twp --/1"]
[]
[null,"TYPE PER MONTH / YEARLY TOTAL "]
[null,"Medical Local --/18","Fuel Spill --/--","Commercial Appliance Fire --/--","Barn Fire --/1"]
[null,"Residential Structure Fire --/11","MVA --/21","Duty Officer --/1","Public Service --/--"]
[null,"Commercial Structure Fire --/--","Trees/Wires/Poles --/1","Outside Investigation --/2","Gas Leak Inside --/--"]
[null,"Carbon Monoxide --/--","Fire Police --/3","Investigation Inside --/--","Brush Fire --/1"]
[null,"Vehicle Fire --/4","Transfer --/3","AFA --/10","Landing Zone --/--"]
[null,"Hazardous Material --/1","Assist PD --/3","Special Rescue --/1","Controlled Burn Extinguish --/--"]
[null,"Trash Fire --/--","Animal Rescue --/--","Pedestrian Struck --/--","Water Rescue --/--"]
[null,"Land Rescue --/--","Appliance Fire --/--","Force Entry --/2","Chimney Fire —/1"]

{"sheet":"April 2023","index":3,"n_rows":79,"n_cols":8,"rows_kept":79,"cut":false,"hidden":false,"merged":[[74,4,74,5],[75,4,75,5],[76,4,76,5],[77,4,77,5],[78,4,78,5],[62,1,62,5],[63,4,63,5],[71,4,71,5],[72,4,72,5],[73,4,73,5],[64,4,64,5],[65,4,65,5],[66,4,66,5],[67,4,67,5],[68,4,68,5],[69,1,69,5],[70,1,70,5],[0,0,3,7],[56,0,56,7],[57,0,57,7],[60,4,60,5],[61,4,61,5]]}
[]
[]
[]
[]
["RUN #","TYPE","LOCATION","MUNICIPALITY","DATE","BOX","RESPONSE","INC. #"]
[1]
[2]
[3]
[4]
[5]
[6]
[7]
[8]
[9]
[10]
[11]
[12]
[13]
[14]
[15]
[16]
[17]
[18]
[19]
[20]
[21]
[22]
[23]
[24]
[25]
[26]
[27]
[28]
[29]
[30]
[31]
[32]
[33]
[34]
[35]
[36]
[37]
[38]
[39]
[40]
[41]
[42]
[43]
[44]
[45]
[46]
[47]
[48]
[49]
[50]
[]
["MA--Mutual Aid     YC--York County, AC--Adams County, CC--Cumberland County, DC--Dauphin County"]
["15--NYCFR Box,  YC66--Wellsville,  YC67--Monaghan,  AC32--Northeast Fire (East Berlin/Lake Meade),  AC10--Hampton,  YC9--Dover Township, CC23 (Upper Allen Township) CC25 (Monroe Township), AC9 (York Springs), CC27 (Mechaincisburg) AC33 (United Hook & Ladder)"]
[]
[null,null,"Total Calls For Month",{"$f":"COUNTA(C6:C55)","v":0}]
[null,null,"Total Calls For The Year",{"$f":"SUM('January 2023'!D60,'February 2023'!D61,'March 2023'!D60,'April 2023'!D60,'May 2023'!D60,'June 2023'!D60,'July 2023'!D60,'August 2023'!D60,'September 2023'!D60,'October 2023'!D60,'November 2023'!D60,'December 2023'!D60)","v":85}]
[]
[null,"RUN BREAKDOWNS BY MUNICIPALITY"]
[null,"Dillsburg Boro --/--","Franklin Township --/--","Carroll Township --/--","Franklintown Boro --/--"]
[null,"Washington Township --/--","Warrington Township --/--","Monroe Township --/--","Monaghan Township --/--"]
[null,"Upper Allen Township --/--","Reading Township --/--","Huntington Township --/--","Latimore Township --/--"]
[null,"Dover Boro --/--","Gettysburg Boro --/--","Paxtang Boro --/--"]
[null,"Jackson Twp --/--","Bendersville --/--","Dover Twp --/--"]
[]
[]
[null,"TYPE PER MONTH / YEARLY TOTAL "]
[null,"Medical Local --/--","Fuel Spill --/--","Commercial Appliance Fire --/--","Barn Fire --/--"]
[null,"Residential Structure Fire --/--","MVA --/--","Duty Officer --/--","Public Service --/--"]
[null,"Commercial Structure Fire --/--","Trees/Wires/Poles --/--","Outside Investigation --/--","Gas Leak Inside --/--"]
[null,"Carbon Monoxide --/--","Fire Police --/--","Investigation Inside --/--","Brush Fire --/--"]
[null,"Vehicle Fire --/--","Transfer --/--","AFA --/--","Landing Zone --/--"]
[null,"Hazardous Material --/--","Assist PD --/--","Special Rescue --/--","Controlled Burn Extinguish --/--"]
[null,"Trash Fire --/--","Animal Rescue --/--","Pedestrian Struck --/--","Water Rescue --/--"]
[null,"Land Rescue --/--","Appliance Fire --/--"]

{"sheet":"May 2023","index":4,"n_rows":79,"n_cols":8,"rows_kept":79,"cut":false,"hidden":false,"merged":[[74,4,74,5],[75,4,75,5],[76,4,76,5],[77,4,77,5],[78,4,78,5],[62,1,62,5],[63,4,63,5],[71,4,71,5],[72,4,72,5],[73,4,73,5],[64,4,64,5],[65,4,65,5],[66,4,66,5],[67,4,67,5],[68,4,68,5],[69,1,69,5],[70,1,70,5],[0,0,3,7],[56,0,56,7],[57,0,57,7],[60,4,60,5],[61,4,61,5]]}
[]
[]
[]
[]
["RUN #","TYPE","LOCATION","MUNICIPALITY","DATE","BOX","RESPONSE","INC. #"]
[1]
[2]
[3]
[4]
[5]
[6]
[7]
[8]
[9]
[10]
[11]
[12]
[13]
[14]
[15]
[16]
[17]
[18]
[19]
[20]
[21]
[22]
[23]
[24]
[25]
[26]
[27]
[28]
[29]
[30]
[31]
[32]
[33]
[34]
[35]
[36]
[37]
[38]
[39]
[40]
[41]
[42]
[43]
[44]
[45]
[46]
[47]
[48]
[49]
[50]
[]
["MA--Mutual Aid     YC--York County, AC--Adams County, CC--Cumberland County, DC--Dauphin County"]
["15--NYCFR Box,  YC66--Wellsville,  YC67--Monaghan,  AC32--Northeast Fire (East Berlin/Lake Meade),  AC10--Hampton,  YC9--Dover Township, CC23 (Upper Allen Township) CC25 (Monroe Township), AC9 (York Springs), CC27 (Mechaincisburg) AC33 (United Hook & Ladder)"]
[]
[null,null,"Total Calls For Month",{"$f":"COUNTA(C6:C55)","v":0}]
[null,null,"Total Calls For The Year",{"$f":"SUM('January 2023'!D60,'February 2023'!D61,'March 2023'!D60,'April 2023'!D60,'May 2023'!D60,'June 2023'!D60,'July 2023'!D60,'August 2023'!D60,'September 2023'!D60,'October 2023'!D60,'November 2023'!D60,'December 2023'!D60)","v":85}]
[]
[null,"RUN BREAKDOWNS BY MUNICIPALITY"]
[null,"Dillsburg Boro --/--","Franklin Township --/--","Carroll Township --/--","Franklintown Boro --/--"]
[null,"Washington Township --/--","Warrington Township --/--","Monroe Township --/--","Monaghan Township --/--"]
[null,"Upper Allen Township --/--","Reading Township --/--","Huntington Township --/--","Latimore Township --/--"]
[null,"Dover Boro --/--","Gettysburg Boro --/--","Paxtang Boro --/--"]
[null,"Jackson Twp --/--","Bendersville --/--","Dover Twp --/--"]
[]
[]
[null,"TYPE PER MONTH / YEARLY TOTAL "]
[null,"Medical Local --/--","Fuel Spill --/--","Commercial Appliance Fire --/--","Barn Fire --/--"]
[null,"Residential Structure Fire --/--","MVA --/--","Duty Officer --/--","Public Service --/--"]
[null,"Commercial Structure Fire --/--","Trees/Wires/Poles --/--","Outside Investigation --/--","Gas Leak Inside --/--"]
[null,"Carbon Monoxide --/--","Fire Police --/--","Investigation Inside --/--","Brush Fire --/--"]
[null,"Vehicle Fire --/--","Transfer --/--","AFA --/--","Landing Zone --/--"]
[null,"Hazardous Material --/--","Assist PD --/--","Special Rescue --/--","Controlled Burn Extinguish --/--"]
[null,"Trash Fire --/--","Animal Rescue --/--","Pedestrian Struck --/--","Water Rescue --/--"]
[null,"Land Rescue --/--","Appliance Fire --/--"]

{"sheet":"June 2023","index":5,"n_rows":79,"n_cols":8,"rows_kept":79,"cut":false,"hidden":false,"merged":[[74,4,74,5],[75,4,75,5],[76,4,76,5],[77,4,77,5],[78,4,78,5],[62,1,62,5],[63,4,63,5],[71,4,71,5],[72,4,72,5],[73,4,73,5],[64,4,64,5],[65,4,65,5],[66,4,66,5],[67,4,67,5],[68,4,68,5],[69,1,69,5],[70,1,70,5],[0,0,3,7],[56,0,56,7],[57,0,57,7],[60,4,60,5],[61,4,61,5]]}
[]
[]
[]
[]
["RUN #","TYPE","LOCATION","MUNICIPALITY","DATE","BOX","RESPONSE","INC. #"]
[1]
[2]
[3]
[4]
[5]
[6]
[7]
[8]
[9]
[10]
[11]
[12]
[13]
[14]
[15]
[16]
[17]
[18]
[19]
[20]
[21]
[22]
[23]
[24]
[25]
[26]
[27]
[28]
[29]
[30]
[31]
[32]
[33]
[34]
[35]
[36]
[37]
[38]
[39]
[40]
[41]
[42]
[43]
[44]
[45]
[46]
[47]
[48]
[49]
[50]
[]
["MA--Mutual Aid     YC--York County, AC--Adams County, CC--Cumberland County, DC--Dauphin County"]
["15--NYCFR Box,  YC66--Wellsville,  YC67--Monaghan,  AC32--Northeast Fire (East Berlin/Lake Meade),  AC10--Hampton,  YC9--Dover Township, CC23 (Upper Allen Township) CC25 (Monroe Township), AC9 (York Springs), CC27 (Mechaincisburg) AC33 (United Hook & Ladder)"]
[]
[null,null,"Total Calls For Month",{"$f":"COUNTA(C6:C55)","v":0}]
[null,null,"Total Calls For The Year",{"$f":"SUM('January 2023'!D60,'February 2023'!D61,'March 2023'!D60,'April 2023'!D60,'May 2023'!D60,'June 2023'!D60,'July 2023'!D60,'August 2023'!D60,'September 2023'!D60,'October 2023'!D60,'November 2023'!D60,'December 2023'!D60)","v":85}]
[]
[null,"RUN BREAKDOWNS BY MUNICIPALITY"]
[null,"Dillsburg Boro --/--","Franklin Township --/--","Carroll Township --/--","Franklintown Boro --/--"]
[null,"Washington Township --/--","Warrington Township --/--","Monroe Township --/--","Monaghan Township --/--"]
[null,"Upper Allen Township --/--","Reading Township --/--","Huntington Township --/--","Latimore Township --/--"]
[null,"Dover Boro --/--","Gettysburg Boro --/--","Paxtang Boro --/--"]
[null,"Jackson Twp --/--","Bendersville --/--","Dover Twp --/--"]
[]
[]
[null,"TYPE PER MONTH / YEARLY TOTAL "]
[null,"Medical Local --/--","Fuel Spill --/--","Commercial Appliance Fire --/--","Barn Fire --/--"]
[null,"Residential Structure Fire --/--","MVA --/--","Duty Officer --/--","Public Service --/--"]
[null,"Commercial Structure Fire --/--","Trees/Wires/Poles --/--","Outside Investigation --/--","Gas Leak Inside --/--"]
[null,"Carbon Monoxide --/--","Fire Police --/--","Investigation Inside --/--","Brush Fire --/--"]
[null,"Vehicle Fire --/--","Transfer --/--","AFA --/--","Landing Zone --/--"]
[null,"Hazardous Material --/--","Assist PD --/--","Special Rescue --/--","Controlled Burn Extinguish --/--"]
[null,"Trash Fire --/--","Animal Rescue --/--","Pedestrian Struck --/--","Water Rescue --/--"]
[null,"Land Rescue --/--","Appliance Fire --/--"]

{"sheet":"July 2023","index":6,"n_rows":79,"n_cols":8,"rows_kept":79,"cut":false,"hidden":false,"merged":[[74,4,74,5],[75,4,75,5],[76,4,76,5],[77,4,77,5],[78,4,78,5],[62,1,62,5],[63,4,63,5],[71,4,71,5],[72,4,72,5],[73,4,73,5],[64,4,64,5],[65,4,65,5],[66,4,66,5],[67,4,67,5],[68,4,68,5],[69,1,69,5],[70,1,70,5],[0,0,3,7],[56,0,56,7],[57,0,57,7],[60,4,60,5],[61,4,61,5]]}
[]
[]
[]
[]
["RUN #","TYPE","LOCATION","MUNICIPALITY","DATE","BOX","RESPONSE","INC. #"]
[1]
[2]
[3]
[4]
[5]
[6]
[7]
[8]
[9]
[10]
[11]
[12]
[13]
[14]
[15]
[16]
[17]
[18]
[19]
[20]
[21]
[22]
[23]
[24]
[25]
[26]
[27]
[28]
[29]
[30]
[31]
[32]
[33]
[34]
[35]
[36]
[37]
[38]
[39]
[40]
[41]
[42]
[43]
[44]
[45]
[46]
[47]
[48]
[49]
[50]
[]
["MA--Mutual Aid     YC--York County, AC--Adams County, CC--Cumberland County, DC--Dauphin County"]
["15--NYCFR Box,  YC66--Wellsville,  YC67--Monaghan,  AC32--Northeast Fire (East Berlin/Lake Meade),  AC10--Hampton,  YC9--Dover Township, CC23 (Upper Allen Township) CC25 (Monroe Township), AC9 (York Springs), CC27 (Mechaincisburg) AC33 (United Hook & Ladder)"]
[]
[null,null,"Total Calls For Month",{"$f":"COUNTA(C6:C55)","v":0}]
[null,null,"Total Calls For The Year",{"$f":"SUM('January 2023'!D60,'February 2023'!D61,'March 2023'!D60,'April 2023'!D60,'May 2023'!D60,'June 2023'!D60,'July 2023'!D60,'August 2023'!D60,'September 2023'!D60,'October 2023'!D60,'November 2023'!D60,'December 2023'!D60)","v":85}]
[]
[null,"RUN BREAKDOWNS BY MUNICIPALITY"]
[null,"Dillsburg Boro --/--","Franklin Township --/--","Carroll Township --/--","Franklintown Boro --/--"]
[null,"Washington Township --/--","Warrington Township --/--","Monroe Township --/--","Monaghan Township --/--"]
[null,"Upper Allen Township --/--","Reading Township --/--","Huntington Township --/--","Latimore Township --/--"]
[null,"Dover Boro --/--","Gettysburg Boro --/--","Paxtang Boro --/--"]
[null,"Jackson Twp --/--","Bendersville --/--","Dover Twp --/--"]
[]
[]
[null,"TYPE PER MONTH / YEARLY TOTAL "]
[null,"Medical Local --/--","Fuel Spill --/--","Commercial Appliance Fire --/--","Barn Fire --/--"]
[null,"Residential Structure Fire --/--","MVA --/--","Duty Officer --/--","Public Service --/--"]
[null,"Commercial Structure Fire --/--","Trees/Wires/Poles --/--","Outside Investigation --/--","Gas Leak Inside --/--"]
[null,"Carbon Monoxide --/--","Fire Police --/--","Investigation Inside --/--","Brush Fire --/--"]
[null,"Vehicle Fire --/--","Transfer --/--","AFA --/--","Landing Zone --/--"]
[null,"Hazardous Material --/--","Assist PD --/--","Special Rescue --/--","Controlled Burn Extinguish --/--"]
[null,"Trash Fire --/--","Animal Rescue --/--","Pedestrian Struck --/--","Water Rescue --/--"]
[null,"Land Rescue --/--","Appliance Fire --/--"]

{"sheet":"August 2023","index":7,"n_rows":79,"n_cols":8,"rows_kept":79,"cut":false,"hidden":false,"merged":[[74,4,74,5],[75,4,75,5],[76,4,76,5],[77,4,77,5],[78,4,78,5],[62,1,62,5],[63,4,63,5],[71,4,71,5],[72,4,72,5],[73,4,73,5],[64,4,64,5],[65,4,65,5],[66,4,66,5],[67,4,67,5],[68,4,68,5],[69,1,69,5],[70,1,70,5],[0,0,3,7],[56,0,56,7],[57,0,57,7],[60,4,60,5],[61,4,61,5]]}
[]
[]
[]
[]
["RUN #","TYPE","LOCATION","MUNICIPALITY","DATE","BOX","RESPONSE","INC. #"]
[1]
[2]
[3]
[4]
[5]
[6]
[7]
[8]
[9]
[10]
[11]
[12]
[13]
[14]
[15]
[16]
[17]
[18]
[19]
[20]
[21]
[22]
[23]
[24]
[25]
[26]
[27]
[28]
[29]
[30]
[31]
[32]
[33]
[34]
[35]
[36]
[37]
[38]
[39]
[40]
[41]
[42]
[43]
[44]
[45]
[46]
[47]
[48]
[49]
[50]
[]
["MA--Mutual Aid     YC--York County, AC--Adams County, CC--Cumberland County, DC--Dauphin County"]
["15--NYCFR Box,  YC66--Wellsville,  YC67--Monaghan,  AC32--Northeast Fire (East Berlin/Lake Meade),  AC10--Hampton,  YC9--Dover Township, CC23 (Upper Allen Township) CC25 (Monroe Township), AC9 (York Springs), CC27 (Mechaincisburg) AC33 (United Hook & Ladder)"]
[]
[null,null,"Total Calls For Month",{"$f":"COUNTA(C6:C55)","v":0}]
[null,null,"Total Calls For The Year",{"$f":"SUM('January 2023'!D60,'February 2023'!D61,'March 2023'!D60,'April 2023'!D60,'May 2023'!D60,'June 2023'!D60,'July 2023'!D60,'August 2023'!D60,'September 2023'!D60,'October 2023'!D60,'November 2023'!D60,'December 2023'!D60)","v":85}]
[]
[null,"RUN BREAKDOWNS BY MUNICIPALITY"]
[null,"Dillsburg Boro --/--","Franklin Township --/--","Carroll Township --/--","Franklintown Boro --/--"]
[null,"Washington Township --/--","Warrington Township --/--","Monroe Township --/--","Monaghan Township --/--"]
[null,"Upper Allen Township --/--","Reading Township --/--","Huntington Township --/--","Latimore Township --/--"]
[null,"Dover Boro --/--","Gettysburg Boro --/--","Paxtang Boro --/--"]
[null,"Jackson Twp --/--","Bendersville --/--","Dover Twp --/--"]
[]
[]
[null,"TYPE PER MONTH / YEARLY TOTAL "]
[null,"Medical Local --/--","Fuel Spill --/--","Commercial Appliance Fire --/--","Barn Fire --/--"]
[null,"Residential Structure Fire --/--","MVA --/--","Duty Officer --/--","Public Service --/--"]
[null,"Commercial Structure Fire --/--","Trees/Wires/Poles --/--","Outside Investigation --/--","Gas Leak Inside --/--"]
[null,"Carbon Monoxide --/--","Fire Police --/--","Investigation Inside --/--","Brush Fire --/--"]
[null,"Vehicle Fire --/--","Transfer --/--","AFA --/--","Landing Zone --/--"]
[null,"Hazardous Material --/--","Assist PD --/--","Special Rescue --/--","Controlled Burn Extinguish --/--"]
[null,"Trash Fire --/--","Animal Rescue --/--","Pedestrian Struck --/--","Water Rescue --/--"]
[null,"Land Rescue --/--","Appliance Fire --/--"]

{"sheet":"September 2023","index":8,"n_rows":79,"n_cols":8,"rows_kept":79,"cut":false,"hidden":false,"merged":[[74,4,74,5],[75,4,75,5],[76,4,76,5],[77,4,77,5],[78,4,78,5],[62,1,62,5],[63,4,63,5],[71,4,71,5],[72,4,72,5],[73,4,73,5],[64,4,64,5],[65,4,65,5],[66,4,66,5],[67,4,67,5],[68,4,68,5],[69,1,69,5],[70,1,70,5],[0,0,3,7],[56,0,56,7],[57,0,57,7],[60,4,60,5],[61,4,61,5]]}
[]
[]
[]
[]
["RUN #","TYPE","LOCATION","MUNICIPALITY","DATE","BOX","RESPONSE","INC. #"]
[1]
[2]
[3]
[4]
[5]
[6]
[7]
[8]
[9]
[10]
[11]
[12]
[13]
[14]
[15]
[16]
[17]
[18]
[19]
[20]
[21]
[22]
[23]
[24]
[25]
[26]
[27]
[28]
[29]
[30]
[31]
[32]
[33]
[34]
[35]
[36]
[37]
[38]
[39]
[40]
[41]
[42]
[43]
[44]
[45]
[46]
[47]
[48]
[49]
[50]
[]
["MA--Mutual Aid     YC--York County, AC--Adams County, CC--Cumberland County, DC--Dauphin County"]
["15--NYCFR Box,  YC66--Wellsville,  YC67--Monaghan,  AC32--Northeast Fire (East Berlin/Lake Meade),  AC10--Hampton,  YC9--Dover Township, CC23 (Upper Allen Township) CC25 (Monroe Township), AC9 (York Springs), CC27 (Mechaincisburg) AC33 (United Hook & Ladder)"]
[]
[null,null,"Total Calls For Month",{"$f":"COUNTA(C6:C55)","v":0}]
[null,null,"Total Calls For The Year",{"$f":"SUM('January 2023'!D60,'February 2023'!D61,'March 2023'!D60,'April 2023'!D60,'May 2023'!D60,'June 2023'!D60,'July 2023'!D60,'August 2023'!D60,'September 2023'!D60,'October 2023'!D60,'November 2023'!D60,'December 2023'!D60)","v":85}]
[]
[null,"RUN BREAKDOWNS BY MUNICIPALITY"]
[null,"Dillsburg Boro --/--","Franklin Township --/--","Carroll Township --/--","Franklintown Boro --/--"]
[null,"Washington Township --/--","Warrington Township --/--","Monroe Township --/--","Monaghan Township --/--"]
[null,"Upper Allen Township --/--","Reading Township --/--","Huntington Township --/--","Latimore Township --/--"]
[null,"Dover Boro --/--","Gettysburg Boro --/--","Paxtang Boro --/--"]
[null,"Jackson Twp --/--","Bendersville --/--","Dover Twp --/--"]
[]
[]
[null,"TYPE PER MONTH / YEARLY TOTAL "]
[null,"Medical Local --/--","Fuel Spill --/--","Commercial Appliance Fire --/--","Barn Fire --/--"]
[null,"Residential Structure Fire --/--","MVA --/--","Duty Officer --/--","Public Service --/--"]
[null,"Commercial Structure Fire --/--","Trees/Wires/Poles --/--","Outside Investigation --/--","Gas Leak Inside --/--"]
[null,"Carbon Monoxide --/--","Fire Police --/--","Investigation Inside --/--","Brush Fire --/--"]
[null,"Vehicle Fire --/--","Transfer --/--","AFA --/--","Landing Zone --/--"]
[null,"Hazardous Material --/--","Assist PD --/--","Special Rescue --/--","Controlled Burn Extinguish --/--"]
[null,"Trash Fire --/--","Animal Rescue --/--","Pedestrian Struck --/--","Water Rescue --/--"]
[null,"Land Rescue --/--","Appliance Fire --/--"]

{"sheet":"October 2023","index":9,"n_rows":79,"n_cols":8,"rows_kept":79,"cut":false,"hidden":false,"merged":[[74,4,74,5],[75,4,75,5],[76,4,76,5],[77,4,77,5],[78,4,78,5],[62,1,62,5],[63,4,63,5],[71,4,71,5],[72,4,72,5],[73,4,73,5],[64,4,64,5],[65,4,65,5],[66,4,66,5],[67,4,67,5],[68,4,68,5],[69,1,69,5],[70,1,70,5],[0,0,3,7],[56,0,56,7],[57,0,57,7],[60,4,60,5],[61,4,61,5]]}
[]
[]
[]
[]
["RUN #","TYPE","LOCATION","MUNICIPALITY","DATE","BOX","RESPONSE","INC. #"]
[1]
[2]
[3]
[4]
[5]
[6]
[7]
[8]
[9]
[10]
[11]
[12]
[13]
[14]
[15]
[16]
[17]
[18]
[19]
[20]
[21]
[22]
[23]
[24]
[25]
[26]
[27]
[28]
[29]
[30]
[31]
[32]
[33]
[34]
[35]
[36]
[37]
[38]
[39]
[40]
[41]
[42]
[43]
[44]
[45]
[46]
[47]
[48]
[49]
[50]
[]
["MA--Mutual Aid     YC--York County, AC--Adams County, CC--Cumberland County, DC--Dauphin County"]
["15--NYCFR Box,  YC66--Wellsville,  YC67--Monaghan,  AC32--Northeast Fire (East Berlin/Lake Meade),  AC10--Hampton,  YC9--Dover Township, CC23 (Upper Allen Township) CC25 (Monroe Township), AC9 (York Springs), CC27 (Mechaincisburg) AC33 (United Hook & Ladder)"]
[]
[null,null,"Total Calls For Month",{"$f":"COUNTA(C6:C55)","v":0}]
[null,null,"Total Calls For The Year",{"$f":"SUM('January 2023'!D60,'February 2023'!D61,'March 2023'!D60,'April 2023'!D60,'May 2023'!D60,'June 2023'!D60,'July 2023'!D60,'August 2023'!D60,'September 2023'!D60,'October 2023'!D60,'November 2023'!D60,'December 2023'!D60)","v":85}]
[]
[null,"RUN BREAKDOWNS BY MUNICIPALITY"]
[null,"Dillsburg Boro --/--","Franklin Township --/--","Carroll Township --/--","Franklintown Boro --/--"]
[null,"Washington Township --/--","Warrington Township --/--","Monroe Township --/--","Monaghan Township --/--"]
[null,"Upper Allen Township --/--","Reading Township --/--","Huntington Township --/--","Latimore Township --/--"]
[null,"Dover Boro --/--","Gettysburg Boro --/--","Paxtang Boro --/--"]
[null,"Jackson Twp --/--","Bendersville --/--","Dover Twp --/--"]
[]
[]
[null,"TYPE PER MONTH / YEARLY TOTAL "]
[null,"Medical Local --/--","Fuel Spill --/--","Commercial Appliance Fire --/--","Barn Fire --/--"]
[null,"Residential Structure Fire --/--","MVA --/--","Duty Officer --/--","Public Service --/--"]
[null,"Commercial Structure Fire --/--","Trees/Wires/Poles --/--","Outside Investigation --/--","Gas Leak Inside --/--"]
[null,"Carbon Monoxide --/--","Fire Police --/--","Investigation Inside --/--","Brush Fire --/--"]
[null,"Vehicle Fire --/--","Transfer --/--","AFA --/--","Landing Zone --/--"]
[null,"Hazardous Material --/--","Assist PD --/--","Special Rescue --/--","Controlled Burn Extinguish --/--"]
[null,"Trash Fire --/--","Animal Rescue --/--","Pedestrian Struck --/--","Water Rescue --/--"]
[null,"Land Rescue --/--","Appliance Fire --/--"]

{"sheet":"November 2023","index":10,"n_rows":79,"n_cols":8,"rows_kept":79,"cut":false,"hidden":false,"merged":[[74,4,74,5],[75,4,75,5],[76,4,76,5],[77,4,77,5],[78,4,78,5],[62,1,62,5],[63,4,63,5],[71,4,71,5],[72,4,72,5],[73,4,73,5],[64,4,64,5],[65,4,65,5],[66,4,66,5],[67,4,67,5],[68,4,68,5],[69,1,69,5],[70,1,70,5],[0,0,3,7],[56,0,56,7],[57,0,57,7],[60,4,60,5],[61,4,61,5]]}
[]
[]
[]
[]
["RUN #","TYPE","LOCATION","MUNICIPALITY","DATE","BOX","RESPONSE","INC. #"]
[1]
[2]
[3]
[4]
[5]
[6]
[7]
[8]
[9]
[10]
[11]
[12]
[13]
[14]
[15]
[16]
[17]
[18]
[19]
[20]
[21]
[22]
[23]
[24]
[25]
[26]
[27]
[28]
[29]
[30]
[31]
[32]
[33]
[34]
[35]
[36]
[37]
[38]
[39]
[40]
[41]
[42]
[43]
[44]
[45]
[46]
[47]
[48]
[49]
[50]
[]
["MA--Mutual Aid     YC--York County, AC--Adams County, CC--Cumberland County, DC--Dauphin County"]
["15--NYCFR Box,  YC66--Wellsville,  YC67--Monaghan,  AC32--Northeast Fire (East Berlin/Lake Meade),  AC10--Hampton,  YC9--Dover Township, CC23 (Upper Allen Township) CC25 (Monroe Township), AC9 (York Springs), CC27 (Mechaincisburg) AC33 (United Hook & Ladder)"]
[]
[null,null,"Total Calls For Month",{"$f":"COUNTA(C6:C55)","v":0}]
[null,null,"Total Calls For The Year",{"$f":"SUM('January 2023'!D60,'February 2023'!D61,'March 2023'!D60,'April 2023'!D60,'May 2023'!D60,'June 2023'!D60,'July 2023'!D60,'August 2023'!D60,'September 2023'!D60,'October 2023'!D60,'November 2023'!D60,'December 2023'!D60)","v":85}]
[]
[null,"RUN BREAKDOWNS BY MUNICIPALITY"]
[null,"Dillsburg Boro --/--","Franklin Township --/--","Carroll Township --/--","Franklintown Boro --/--"]
[null,"Washington Township --/--","Warrington Township --/--","Monroe Township --/--","Monaghan Township --/--"]
[null,"Upper Allen Township --/--","Reading Township --/--","Huntington Township --/--","Latimore Township --/--"]
[null,"Dover Boro --/--","Gettysburg Boro --/--","Paxtang Boro --/--"]
[null,"Jackson Twp --/--","Bendersville --/--","Dover Twp --/--"]
[]
[]
[null,"TYPE PER MONTH / YEARLY TOTAL "]
[null,"Medical Local --/--","Fuel Spill --/--","Commercial Appliance Fire --/--","Barn Fire --/--"]
[null,"Residential Structure Fire --/--","MVA --/--","Duty Officer --/--","Public Service --/--"]
[null,"Commercial Structure Fire --/--","Trees/Wires/Poles --/--","Outside Investigation --/--","Gas Leak Inside --/--"]
[null,"Carbon Monoxide --/--","Fire Police --/--","Investigation Inside --/--","Brush Fire --/--"]
[null,"Vehicle Fire --/--","Transfer --/--","AFA --/--","Landing Zone --/--"]
[null,"Hazardous Material --/--","Assist PD --/--","Special Rescue --/--","Controlled Burn Extinguish --/--"]
[null,"Trash Fire --/--","Animal Rescue --/--","Pedestrian Struck --/--","Water Rescue --/--"]
[null,"Land Rescue --/--","Appliance Fire --/--"]

{"sheet":"December 2023","index":11,"n_rows":79,"n_cols":8,"rows_kept":79,"cut":false,"hidden":false,"merged":[[74,4,74,5],[75,4,75,5],[76,4,76,5],[77,4,77,5],[78,4,78,5],[62,1,62,5],[63,4,63,5],[71,4,71,5],[72,4,72,5],[73,4,73,5],[64,4,64,5],[65,4,65,5],[66,4,66,5],[67,4,67,5],[68,4,68,5],[69,1,69,5],[70,1,70,5],[0,0,3,7],[56,0,56,7],[57,0,57,7],[60,4,60,5],[61,4,61,5]]}
[]
[]
[]
[]
["RUN #","TYPE","LOCATION","MUNICIPALITY","DATE","BOX","RESPONSE","INC. #"]
[1]
[2]
[3]
[4]
[5]
[6]
[7]
[8]
[9]
[10]
[11]
[12]
[13]
[14]
[15]
[16]
[17]
[18]
[19]
[20]
[21]
[22]
[23]
[24]
[25]
[26]
[27]
[28]
[29]
[30]
[31]
[32]
[33]
[34]
[35]
[36]
[37]
[38]
[39]
[40]
[41]
[42]
[43]
[44]
[45]
[46]
[47]
[48]
[49]
[50]
[]
["MA--Mutual Aid     YC--York County, AC--Adams County, CC--Cumberland County, DC--Dauphin County"]
["15--NYCFR Box,  YC66--Wellsville,  YC67--Monaghan,  AC32--Northeast Fire (East Berlin/Lake Meade),  AC10--Hampton,  YC9--Dover Township, CC23 (Upper Allen Township) CC25 (Monroe Township), AC9 (York Springs), CC27 (Mechaincisburg) AC33 (United Hook & Ladder)"]
[]
[null,null,"Total Calls For Month",{"$f":"COUNTA(C6:C55)","v":0}]
[null,null,"Total Calls For The Year",{"$f":"SUM('January 2023'!D60,'February 2023'!D61,'March 2023'!D60,'April 2023'!D60,'May 2023'!D60,'June 2023'!D60,'July 2023'!D60,'August 2023'!D60,'September 2023'!D60,'October 2023'!D60,'November 2023'!D60,'December 2023'!D60)","v":85}]
[]
[null,"RUN BREAKDOWNS BY MUNICIPALITY"]
[null,"Dillsburg Boro --/--","Franklin Township --/--","Carroll Township --/--","Franklintown Boro --/--"]
[null,"Washington Township --/--","Warrington Township --/--","Monroe Township --/--","Monaghan Township --/--"]
[null,"Upper Allen Township --/--","Reading Township --/--","Huntington Township --/--","Latimore Township --/--"]
[null,"Dover Boro --/--","Gettysburg Boro --/--","Paxtang Boro --/--"]
[null,"Jackson Twp --/--","Bendersville --/--","Dover Twp --/--"]
[]
[]
[null,"TYPE PER MONTH / YEARLY TOTAL "]
[null,"Medical Local --/--","Fuel Spill --/--","Commercial Appliance Fire --/--","Barn Fire --/--"]
[null,"Residential Structure Fire --/--","MVA --/--","Duty Officer --/--","Public Service --/--"]
[null,"Commercial Structure Fire --/--","Trees/Wires/Poles --/--","Outside Investigation --/--","Gas Leak Inside --/--"]
[null,"Carbon Monoxide --/--","Fire Police --/--","Investigation Inside --/--","Brush Fire --/--"]
[null,"Vehicle Fire --/--","Transfer --/--","AFA --/--","Landing Zone --/--"]
[null,"Hazardous Material --/--","Assist PD --/--","Special Rescue --/--","Controlled Burn Extinguish --/--"]
[null,"Trash Fire --/--","Animal Rescue --/--","Pedestrian Struck --/--","Water Rescue --/--"]
[null,"Land Rescue --/--","Appliance Fire --/--"]

{"sheet":"Source Files","index":12,"n_rows":41,"n_cols":5,"rows_kept":41,"cut":false,"hidden":false,"merged":[]}
["Bendersville ",null,"AFA",null,"Responed"]
["Carlisle Boro",null,"Animal Rescue",null,"Failed - No Driver"]
["Carroll Twp",null,"Appliance Fire",null,"Second Call"]
["Conewago Twp",null,"Assist PD",null,"Failed - No EMT"]
[null,null,"Basic Rescue"]
["Dallastown Boro",null,"Barn Fire",null,"Out Of Service"]
["Dillsburg Boro",null,"Brush Fire",null,"Dispatch Wrong Dep."]
["Dover Boro",null,"Carbon Monoxide",null,"Failed- No Crew"]
["Dover Twp",null,"Chimney Fire",null,"Canceled Prior to Response"]
["Franklin Twp",null,"Commercial Appliance Fire"]
["Franklintown Boro",null,"Commercial Structure Fire"]
["Gettysburg Boro",null,"Duty Officer"]
["Hamilton Twp",null,"Extinguish Controlled Burn"]
["Huntington Twp"]
["Jackson Twp",null,"Fire Police"]
["Jacobus Boro"]
["Latimore Twp",null,"Fuel Spill"]
["Lower Allen Twp",null,"Gas Leak Inside"]
["Manchester Twp",null,"Hazardous Material"]
["Mechanicsburg Boro",null,"Inside Investigation"]
["Monaghan Twp",null,"Land Rescue"]
["Monroe Twp",null,"Landing Zone"]
["New Cumberland Boro",null,"Medical Local"]
["Paxtang Boro",null,"MVA"]
["Red Lion Boro",null,"MVA W/Entrapment"]
["Reading Twp",null,"Outside Investigation"]
["Straban Twp",null,"Pedestrian Struck"]
["Tyrone Twp",null,"Public Service"]
["Upper Allen Twp",null,"Residential Structure Fire"]
["Warrington Twp",null,"Structure Collapse"]
["Washington Twp",null,"Special Rescue"]
["Windsor Twp",null,"Transfer Assignment"]
["Wellsville Boro",null,"Trash Fire"]
["York Spring Boro",null,"Trees / Wires / Pole Fire"]
[null,null,"Vehicle Fire"]
[null,null,"Water Rescue"]
[null,null,"Force Entry"]
[null,null,"Medical Local(Lift Assist)"]
[null,null,"Control Burn"]
[null,null,"Shed Fire"]
[null,null,"Burns"]